[Event "Titled Tuesday Blitz November 29 Late 2022"]
[White "Necromon"]
[Black "Mgeladze, Tamaz"]
[BlackFideId "13601202"]
[WhiteElo "2475"]
[BlackElo "2288"]
[Result "1/2-1/2"]
[Round "03"]
[TimeControl "180+1"]
[Date "2022.11.30"]
[WhiteClock "0:00:07"]
[BlackClock "0:00:08"]

1. Nf3 {[%clk 0:02:53]}  Nf6 {[%clk 0:03:00]} 2. g3 {[%clk 0:02:53]}  c5 {[%clk 0:03:00]} 3. b3 {[%clk 0:02:53]}  g6 {[%clk 0:03:00]} 4. Bb2 {[%clk 0:02:54]}  Bg7 {[%clk 0:03:01]} 5. Bg2 {[%clk 0:02:54]}  O-O {[%clk 0:03:01]} 6. O-O {[%clk 0:02:55]}  Nc6 {[%clk 0:03:02]} 7. c4 {[%clk 0:02:55]}  d6 {[%clk 0:03:02]} 8. d4 {[%clk 0:02:54]}  cxd4 {[%clk 0:03:03]} 9. Nxd4 {[%clk 0:02:54]}  Bd7 {[%clk 0:03:04]} 10. Nc3 {[%clk 0:02:54]}  Qa5 {[%clk 0:03:04]} 11. Nc2 {[%clk 0:02:53]}  Rfc8 {[%clk 0:03:03]} 12. Qd2 {[%clk 0:02:53]}  Qh5 {[%clk 0:03:00]} 13. Ne3 {[%clk 0:02:37]}  Bh3 {[%clk 0:02:59]} 14. Ncd5 {[%clk 0:02:32]}  Nxd5 {[%clk 0:02:50]} 15. Nxd5 {[%clk 0:02:22]}  Bxg2 {[%clk 0:02:45]} 16. Kxg2 {[%clk 0:02:22]}  Rab8 {[%clk 0:02:23]} 17. Rac1 {[%clk 0:01:57]}  Bxb2 {[%clk 0:02:20]} 18. Qxb2 {[%clk 0:01:57]}  b5 {[%clk 0:02:20]} 19. Qd2 {[%clk 0:01:52]}  Qe5 {[%clk 0:02:09]} 20. Rfd1 {[%clk 0:01:43]}  e6 {[%clk 0:01:50]} 21. cxb5 {[%clk 0:01:33]}  Rxb5 {[%clk 0:01:34]} 22. Rxc6 {[%clk 0:01:32]}  Rxc6 {[%clk 0:01:34]} 23. Ne7+ {[%clk 0:01:32]}  Kg7 {[%clk 0:01:35]} 24. Nxc6 {[%clk 0:01:33]}  Qe4+ {[%clk 0:01:36]} 25. Kg1 {[%clk 0:01:33]}  Qxc6 {[%clk 0:01:36]} 26. Qxd6 {[%clk 0:01:34]}  Qc2 {[%clk 0:01:30]} 27. Rd2 {[%clk 0:01:27]}  Qb1+ {[%clk 0:01:25]} 28. Kg2 {[%clk 0:01:27]}  Qe4+ {[%clk 0:01:21]} 29. f3 {[%clk 0:01:25]}  Qf5 {[%clk 0:01:12]} 30. e4 {[%clk 0:01:19]}  Qf6 {[%clk 0:01:08]} 31. Qd4 {[%clk 0:01:15]}  e5 {[%clk 0:01:06]} 32. Qxa7 {[%clk 0:01:14]}  h5 {[%clk 0:01:00]} 33. Qe3 {[%clk 0:01:10]}  h4 {[%clk 0:00:58]} 34. a4 {[%clk 0:01:08]}  Rb7 {[%clk 0:00:52]} 35. Qc3 {[%clk 0:01:03]}  h3+ {[%clk 0:00:46]} 36. Kxh3 {[%clk 0:01:00]}  Qe6+ {[%clk 0:00:46]} 37. Kg2 {[%clk 0:01:00]}  Rxb3 {[%clk 0:00:47]} 38. Qc2 {[%clk 0:00:50]}  Ra3 {[%clk 0:00:44]} 39. Rd5 {[%clk 0:00:48]}  Qf6 {[%clk 0:00:34]} 40. Rd3 {[%clk 0:00:40]}  Ra1 {[%clk 0:00:29]} 41. Rc3 {[%clk 0:00:30]}  Qb6 {[%clk 0:00:27]} 42. Rc5 {[%clk 0:00:23]}  Qe6 {[%clk 0:00:26]} 43. Rd5 {[%clk 0:00:21]}  g5 {[%clk 0:00:20]} 44. Qb2 {[%clk 0:00:19]}  Rxa4 {[%clk 0:00:15]} 45. Rxe5 {[%clk 0:00:18]}  Ra2 {[%clk 0:00:09]} 46. Rxg5+ {[%clk 0:00:14]}  Kh6 {[%clk 0:00:06]} 47. Rb5 {[%clk 0:00:14]}  Rxb2+ {[%clk 0:00:06]} 48. Rxb2 {[%clk 0:00:15]}  Qe5 {[%clk 0:00:07]} 49. Rf2 {[%clk 0:00:16]}  Qd4 {[%clk 0:00:07]} 50. Re2 {[%clk 0:00:16]}  Kg7 {[%clk 0:00:08]} 51. Rf2 {[%clk 0:00:17]}  Qd3 {[%clk 0:00:09]} 52. e5 {[%clk 0:00:16]}  Qd1 {[%clk 0:00:09]} 53. f4 {[%clk 0:00:16]}  Qe1 {[%clk 0:00:09]} 54. h4 {[%clk 0:00:16]}  Qe4+ {[%clk 0:00:10]} 55. Kh2 {[%clk 0:00:16]}  Kh6 {[%clk 0:00:10]} 56. g4 {[%clk 0:00:16]}  Qe3 {[%clk 0:00:10]} 57. Kg2 {[%clk 0:00:15]}  Qe1 {[%clk 0:00:10]} 58. Kg3 {[%clk 0:00:15]}  Qg1+ {[%clk 0:00:10]} 59. Kf3 {[%clk 0:00:15]}  Qh1+ {[%clk 0:00:10]} 60. Kg3 {[%clk 0:00:16]}  Kg7 {[%clk 0:00:10]} 61. f5 {[%clk 0:00:15]}  Qg1+ {[%clk 0:00:10]} 62. Kf3 {[%clk 0:00:15]}  Qa1 {[%clk 0:00:11]} 63. e6 {[%clk 0:00:16]}  fxe6 {[%clk 0:00:12]} 64. fxe6 {[%clk 0:00:16]}  Qc3+ {[%clk 0:00:12]} 65. Kg2 {[%clk 0:00:16]}  Qc6+ {[%clk 0:00:12]} 66. Kg3 {[%clk 0:00:16]}  Qxe6 {[%clk 0:00:13]} 67. Rf5 {[%clk 0:00:16]}  Qe3+ {[%clk 0:00:13]} 68. Kg2 {[%clk 0:00:16]}  Qc1 {[%clk 0:00:14]} 69. h5 {[%clk 0:00:16]}  Qd1 {[%clk 0:00:14]} 70. Kg3 {[%clk 0:00:16]}  Qe1+ {[%clk 0:00:14]} 71. Kh3 {[%clk 0:00:16]}  Qg1 {[%clk 0:00:14]} 72. Kh4 {[%clk 0:00:15]}  Qh2+ {[%clk 0:00:14]} 73. Kg5 {[%clk 0:00:16]}  Qd2+ {[%clk 0:00:15]} 74. Kh4 {[%clk 0:00:16]}  Qg2 {[%clk 0:00:15]} 75. Rg5+ {[%clk 0:00:16]}  Kh6 {[%clk 0:00:15]} 76. Rg6+ {[%clk 0:00:15]}  Kh7 {[%clk 0:00:15]} 77. g5 {[%clk 0:00:13]}  Qf3 {[%clk 0:00:15]} 78. Rf6 {[%clk 0:00:11]}  Qe4+ {[%clk 0:00:15]} 79. Kg3 {[%clk 0:00:11]}  Qd4 {[%clk 0:00:15]} 80. h6 {[%clk 0:00:11]}  Qd3+ {[%clk 0:00:13]} 81. Kg4 {[%clk 0:00:11]}  Qd5 {[%clk 0:00:13]} 82. Kh4 {[%clk 0:00:10]}  Kg8 {[%clk 0:00:12]} 83. Kh5 {[%clk 0:00:10]}  Qh1+ {[%clk 0:00:12]} 84. Kg4 {[%clk 0:00:10]}  Qb1 {[%clk 0:00:13]} 85. g6 {[%clk 0:00:09]}  Qe4+ {[%clk 0:00:13]} 86. Kg5 {[%clk 0:00:09]}  Qe3+ {[%clk 0:00:13]} 87. Kf5 {[%clk 0:00:08]}  Qxh6 {[%clk 0:00:12]} 88. Rf7 {[%clk 0:00:08]}  Qh3+ {[%clk 0:00:12]} 89. Kg5 {[%clk 0:00:08]}  Qg3+ {[%clk 0:00:12]} 90. Kf5 {[%clk 0:00:08]}  Qh4 {[%clk 0:00:12]} 91. Rh7 {[%clk 0:00:08]}  Qf2+ {[%clk 0:00:11]} 92. Kg5 {[%clk 0:00:08]}  Qe3+ {[%clk 0:00:11]} 93. Kf5 {[%clk 0:00:09]}  Qd4 {[%clk 0:00:12]} 94. Rf7 {[%clk 0:00:08]}  Qd5+ {[%clk 0:00:12]} 95. Kf6 {[%clk 0:00:08]}  Qd4+ {[%clk 0:00:10]} 96. Kf5 {[%clk 0:00:08]}  Qc3 {[%clk 0:00:11]} 97. Rh7 {[%clk 0:00:08]}  Qc5+ {[%clk 0:00:12]} 98. Kf6 {[%clk 0:00:08]}  Qd6+ {[%clk 0:00:12]} 99. Kf5 {[%clk 0:00:09]}  Qc6 {[%clk 0:00:12]} 100. Rf7 {[%clk 0:00:09]}  Qf3+ {[%clk 0:00:12]} 101. Kg5 {[%clk 0:00:09]}  Qg3+ {[%clk 0:00:12]} 102. Kf5 {[%clk 0:00:09]}  Qh4 {[%clk 0:00:12]} 103. Rh7 {[%clk 0:00:10]}  Qf2+ {[%clk 0:00:12]} 104. Kg5 {[%clk 0:00:10]}  Qd4 {[%clk 0:00:11]} 105. Rf7 {[%clk 0:00:09]}  Qe5+ {[%clk 0:00:11]} 106. Kh6 {[%clk 0:00:09]}  Qe4 {[%clk 0:00:09]} 107. Kg5 {[%clk 0:00:09]}  Qe3+ {[%clk 0:00:08]} 108. Kf5 {[%clk 0:00:09]}  Qd2 {[%clk 0:00:09]} 109. Rh7 {[%clk 0:00:09]}  Kf8 {[%clk 0:00:09]} 110. Kf6 {[%clk 0:00:08]}  Qf4+ {[%clk 0:00:09]} 111. Ke6 {[%clk 0:00:08]}  Kg8 {[%clk 0:00:08]} 112. Rf7 {[%clk 0:00:08]}  Qd4 {[%clk 0:00:08]} 113. Kf5 {[%clk 0:00:07]} 1/2-1/2


[Site "https://www.chess.com"]

[Event "Titled Tuesday Blitz November 29 Late 2022"]
[White "O`Gorman, Tom"]
[Black "Schuster, Karsten"]
[WhiteFideId "2508249"]
[BlackFideId "4611071"]
[WhiteElo "2271"]
[BlackElo "2294"]
[Result "1-0"]
[Round "03"]
[TimeControl "180+1"]
[Date "2022.11.30"]
[WhiteClock "0:01:01"]
[BlackClock "0:00:48"]

1. e4 {[%clk 0:03:00]}  c6 {[%clk 0:02:59]} 2. Nc3 {[%clk 0:02:55]}  d5 {[%clk 0:03:00]} 3. d4 {[%clk 0:02:55]}  dxe4 {[%clk 0:02:59]} 4. Nxe4 {[%clk 0:02:56]}  Bf5 {[%clk 0:02:59]} 5. Ng3 {[%clk 0:02:56]}  Bg6 {[%clk 0:02:59]} 6. h4 {[%clk 0:02:56]}  h6 {[%clk 0:03:00]} 7. Nh3 {[%clk 0:02:50]}  e6 {[%clk 0:02:57]} 8. Nf4 {[%clk 0:02:50]}  Bh7 {[%clk 0:02:58]} 9. Bc4 {[%clk 0:02:49]}  Bd6 {[%clk 0:02:56]} 10. Ngh5 {[%clk 0:02:46]}  Bxf4 {[%clk 0:02:40]} 11. Bxf4 {[%clk 0:02:44]}  Qa5+ {[%clk 0:02:38]} 12. Bd2 {[%clk 0:02:36]}  Qb6 {[%clk 0:02:26]} 13. Nxg7+ {[%clk 0:02:15]}  Kf8 {[%clk 0:02:25]} 14. Nh5 {[%clk 0:02:15]}  Nd7 {[%clk 0:02:16]} 15. Qe2 {[%clk 0:02:11]}  Ngf6 {[%clk 0:02:03]} 16. Bxh6+ {[%clk 0:02:00]}  Ke8 {[%clk 0:02:02]} 17. Nxf6+ {[%clk 0:01:57]}  Nxf6 {[%clk 0:02:02]} 18. Bg7 {[%clk 0:01:55]}  Ke7 {[%clk 0:01:37]} 19. Bxh8 {[%clk 0:01:43]}  Rxh8 {[%clk 0:01:36]} 20. O-O-O {[%clk 0:01:43]}  Rd8 {[%clk 0:01:29]} 21. Qe3 {[%clk 0:01:38]}  Nd5 {[%clk 0:01:16]} 22. Bxd5 {[%clk 0:01:37]}  Rxd5 {[%clk 0:01:16]} 23. g4 {[%clk 0:01:31]}  Rb5 {[%clk 0:01:14]} 24. f4 {[%clk 0:01:25]}  Ke8 {[%clk 0:01:10]} 25. b3 {[%clk 0:01:17]}  Qa5 {[%clk 0:01:09]} 26. a4 {[%clk 0:01:16]}  Rd5 {[%clk 0:01:05]} 27. f5 {[%clk 0:01:16]}  Ke7 {[%clk 0:00:52]} 28. Rhe1 {[%clk 0:01:08]}  Rd6 {[%clk 0:00:51]} 29. Qg5+ {[%clk 0:01:05]}  Kf8 {[%clk 0:00:49]} 30. Qh6+ {[%clk 0:01:02]}  Kg8 {[%clk 0:00:48]} 31. f6 {[%clk 0:01:01]} 1-0


[Site "https://www.chess.com"]

[Event "Titled Tuesday Blitz November 29 Late 2022"]
[White "Obrien, Matthew"]
[Black "Kamsky, Gata"]
[WhiteFideId "2059150"]
[BlackFideId "2000024"]
[WhiteElo "2618"]
[BlackElo "2893"]
[Result "0-1"]
[Round "03"]
[TimeControl "180+1"]
[Date "2022.11.30"]
[WhiteClock "0:01:29"]
[BlackClock "0:01:52"]

1. e4 {[%clk 0:03:00]}  c5 {[%clk 0:02:54]} 2. Nf3 {[%clk 0:03:00]}  e6 {[%clk 0:02:54]} 3. d4 {[%clk 0:03:00]}  cxd4 {[%clk 0:02:54]} 4. Nxd4 {[%clk 0:03:01]}  a6 {[%clk 0:02:54]} 5. Nc3 {[%clk 0:02:59]}  b5 {[%clk 0:02:53]} 6. Bd3 {[%clk 0:02:58]}  Qb6 {[%clk 0:02:52]} 7. Nb3 {[%clk 0:02:57]}  Nc6 {[%clk 0:02:52]} 8. Be3 {[%clk 0:02:57]}  Qc7 {[%clk 0:02:52]} 9. O-O {[%clk 0:02:57]}  Nf6 {[%clk 0:02:47]} 10. f4 {[%clk 0:02:57]}  d6 {[%clk 0:02:34]} 11. a4 {[%clk 0:02:54]}  b4 {[%clk 0:02:33]} 12. Ne2 {[%clk 0:02:54]}  Ng4 {[%clk 0:02:28]} 13. Qd2 {[%clk 0:02:49]}  Nxe3 {[%clk 0:02:28]} 14. Qxe3 {[%clk 0:02:49]}  Qa7 {[%clk 0:02:27]} 15. Qxa7 {[%clk 0:02:46]}  Rxa7 {[%clk 0:02:27]} 16. a5 {[%clk 0:02:47]}  Be7 {[%clk 0:02:19]} 17. Ned4 {[%clk 0:02:29]}  Nxd4 {[%clk 0:02:18]} 18. Nxd4 {[%clk 0:02:30]}  Bd7 {[%clk 0:02:18]} 19. Nf3 {[%clk 0:01:58]}  O-O {[%clk 0:02:10]} 20. e5 {[%clk 0:01:58]}  Bc6 {[%clk 0:02:02]} 21. exd6 {[%clk 0:01:54]}  Bxd6 {[%clk 0:02:00]} 22. Ne5 {[%clk 0:01:55]}  Bd5 {[%clk 0:01:56]} 23. b3 {[%clk 0:01:42]}  g6 {[%clk 0:01:52]} 24. Nd7 {[%clk 0:01:29]} 0-1


[Site "https://www.chess.com"]

[Event "Titled Tuesday Blitz November 29 Late 2022"]
[White "Papp, Petra"]
[Black "Bazzano, Sebastian"]
[WhiteFideId "739049"]
[BlackFideId "104566"]
[WhiteElo "2259"]
[BlackElo "2188"]
[Result "1-0"]
[Round "03"]
[TimeControl "180+1"]
[Date "2022.11.30"]
[WhiteClock "0:00:49"]
[BlackClock "0:00:03"]

1. e4 {[%clk 0:03:00]}  e6 {[%clk 0:02:56]} 2. d3 {[%clk 0:03:00]}  c5 {[%clk 0:02:55]} 3. Nd2 {[%clk 0:03:00]}  Nc6 {[%clk 0:02:54]} 4. Ngf3 {[%clk 0:03:01]}  g6 {[%clk 0:02:54]} 5. g3 {[%clk 0:03:01]}  Bg7 {[%clk 0:02:54]} 6. Bg2 {[%clk 0:03:02]}  Nge7 {[%clk 0:02:55]} 7. O-O {[%clk 0:03:02]}  O-O {[%clk 0:02:55]} 8. Re1 {[%clk 0:03:02]}  e5 {[%clk 0:02:42]} 9. Nc4 {[%clk 0:02:50]}  d6 {[%clk 0:02:42]} 10. c3 {[%clk 0:02:47]}  b5 {[%clk 0:02:38]} 11. Ne3 {[%clk 0:02:47]}  Bb7 {[%clk 0:02:23]} 12. a4 {[%clk 0:02:46]}  a6 {[%clk 0:02:22]} 13. Qb3 {[%clk 0:02:32]}  Na5 {[%clk 0:02:11]} 14. Qc2 {[%clk 0:02:32]}  b4 {[%clk 0:01:55]} 15. Bd2 {[%clk 0:02:11]}  Rc8 {[%clk 0:01:50]} 16. Rac1 {[%clk 0:01:54]}  b3 {[%clk 0:01:41]} 17. Qd1 {[%clk 0:01:52]}  Qb6 {[%clk 0:01:26]} 18. Nc4 {[%clk 0:01:37]}  Nxc4 {[%clk 0:01:25]} 19. dxc4 {[%clk 0:01:37]}  f5 {[%clk 0:01:01]} 20. Ng5 {[%clk 0:01:33]}  fxe4 {[%clk 0:00:38]} 21. Bxe4 {[%clk 0:01:31]}  Bxe4 {[%clk 0:00:34]} 22. Nxe4 {[%clk 0:01:29]}  Nf5 {[%clk 0:00:15]} 23. Bg5 {[%clk 0:01:13]}  h6 {[%clk 0:00:15]} 24. Qd5+ {[%clk 0:01:13]}  Kh7 {[%clk 0:00:14]} 25. Be3 {[%clk 0:01:11]}  Nxe3 {[%clk 0:00:12]} 26. Rxe3 {[%clk 0:01:10]}  Rcd8 {[%clk 0:00:12]} 27. Rd1 {[%clk 0:01:09]}  Qa5 {[%clk 0:00:09]} 28. Red3 {[%clk 0:01:07]}  Qxa4 {[%clk 0:00:08]} 29. Nxd6 {[%clk 0:01:06]}  Rf6 {[%clk 0:00:03]} 30. Qb7 {[%clk 0:00:49]} 1-0


[Site "https://www.chess.com"]

[Event "Titled Tuesday Blitz November 29 Late 2022"]
[White "Pein, Jonathan"]
[Black "Kleiman, Jake"]
[WhiteFideId "417092"]
[BlackFideId "2020041"]
[WhiteElo "2227"]
[BlackElo "2622"]
[Result "1-0"]
[Round "03"]
[TimeControl "180+1"]
[Date "2022.11.30"]
[WhiteClock "0:01:48"]
[BlackClock "0:00:19"]

1. e4 {[%clk 0:02:59]}  e5 {[%clk 0:02:59]} 2. Nf3 {[%clk 0:02:55]}  Nc6 {[%clk 0:03:00]} 3. Nc3 {[%clk 0:02:56]}  Nf6 {[%clk 0:03:00]} 4. g3 {[%clk 0:02:56]}  d5 {[%clk 0:02:57]} 5. exd5 {[%clk 0:02:56]}  Nxd5 {[%clk 0:02:58]} 6. Bg2 {[%clk 0:02:57]}  Nxc3 {[%clk 0:02:56]} 7. bxc3 {[%clk 0:02:58]}  Be6 {[%clk 0:02:55]} 8. O-O {[%clk 0:02:57]}  Qd7 {[%clk 0:02:50]} 9. Re1 {[%clk 0:02:57]}  f6 {[%clk 0:02:19]} 10. d4 {[%clk 0:02:57]}  O-O-O {[%clk 0:02:05]} 11. Be3 {[%clk 0:02:50]}  Ba3 {[%clk 0:01:55]} 12. Qb1 {[%clk 0:02:44]}  Bd5 {[%clk 0:01:38]} 13. Qb5 {[%clk 0:02:36]}  Rhe8 {[%clk 0:01:10]} 14. Rab1 {[%clk 0:02:34]}  Nb8 {[%clk 0:00:47]} 15. Qa5 {[%clk 0:02:24]}  Bf8 {[%clk 0:00:39]} 16. Qxa7 {[%clk 0:02:13]}  e4 {[%clk 0:00:39]} 17. Nd2 {[%clk 0:02:09]}  b6 {[%clk 0:00:28]} 18. Bf4 {[%clk 0:01:52]}  f5 {[%clk 0:00:25]} 19. Rxb6 {[%clk 0:01:49]}  g5 {[%clk 0:00:19]} 20. Rxb8# {[%clk 0:01:48]} 1-0


[Site "https://www.chess.com"]

[Event "Titled Tuesday Blitz November 29 Late 2022"]
[White "Pranav, V"]
[Black "Hambleton, Aman"]
[WhiteFideId "25060783"]
[BlackFideId "2606577"]
[WhiteElo "2975"]
[BlackElo "2711"]
[Result "1-0"]
[Round "03"]
[TimeControl "180+1"]
[Date "2022.11.30"]
[WhiteClock "0:01:04"]
[BlackClock "0:00:01"]

1. e4 {[%clk 0:02:54]}  c5 {[%clk 0:02:56]} 2. Nf3 {[%clk 0:02:54]}  e6 {[%clk 0:02:56]} 3. b3 {[%clk 0:02:51]}  Nc6 {[%clk 0:02:50]} 4. Bb2 {[%clk 0:02:46]}  a6 {[%clk 0:02:40]} 5. g3 {[%clk 0:02:44]}  d6 {[%clk 0:02:34]} 6. d4 {[%clk 0:02:43]}  cxd4 {[%clk 0:02:34]} 7. Nxd4 {[%clk 0:02:44]}  e5 {[%clk 0:02:15]} 8. Ne2 {[%clk 0:02:41]}  Nf6 {[%clk 0:02:12]} 9. Bg2 {[%clk 0:02:41]}  Be7 {[%clk 0:02:09]} 10. O-O {[%clk 0:02:40]}  O-O {[%clk 0:02:09]} 11. h3 {[%clk 0:02:34]}  b5 {[%clk 0:02:07]} 12. a4 {[%clk 0:02:32]}  Bb7 {[%clk 0:02:02]} 13. Nbc3 {[%clk 0:02:32]}  Qb6 {[%clk 0:01:37]} 14. Qd2 {[%clk 0:02:22]}  b4 {[%clk 0:01:27]} 15. Nd5 {[%clk 0:02:17]}  Nxd5 {[%clk 0:01:25]} 16. exd5 {[%clk 0:02:18]}  Nb8 {[%clk 0:01:19]} 17. a5 {[%clk 0:02:17]}  Qc7 {[%clk 0:01:06]} 18. Qxb4 {[%clk 0:02:13]}  Nd7 {[%clk 0:01:01]} 19. Qd2 {[%clk 0:02:10]}  f5 {[%clk 0:00:52]} 20. b4 {[%clk 0:02:03]}  Rac8 {[%clk 0:00:42]} 21. Rfc1 {[%clk 0:02:00]}  Qc4 {[%clk 0:00:41]} 22. Nc3 {[%clk 0:01:13]}  Qxb4 {[%clk 0:00:24]} 23. Rcb1 {[%clk 0:01:13]}  Qc4 {[%clk 0:00:21]} 24. Bf1 {[%clk 0:01:12]}  Qc7 {[%clk 0:00:21]} 25. Na4 {[%clk 0:01:10]}  Qxc2 {[%clk 0:00:17]} 26. Qxc2 {[%clk 0:01:09]}  Rxc2 {[%clk 0:00:18]} 27. Bc3 {[%clk 0:01:10]}  Bxd5 {[%clk 0:00:11]} 28. Bxa6 {[%clk 0:01:05]}  Ra8 {[%clk 0:00:06]} 29. Bd3 {[%clk 0:01:05]}  Ra2 {[%clk 0:00:06]} 30. Rxa2 {[%clk 0:01:05]}  Bxa2 {[%clk 0:00:07]} 31. Rb7 {[%clk 0:01:06]}  Be6 {[%clk 0:00:07]} 32. Bb5 {[%clk 0:01:06]}  Rd8 {[%clk 0:00:04]} 33. a6 {[%clk 0:01:06]}  Bf8 {[%clk 0:00:02]} 34. a7 {[%clk 0:01:05]}  f4 {[%clk 0:00:01]} 35. Bxd7 {[%clk 0:01:04]} 1-0


[Site "https://www.chess.com"]

[Event "Titled Tuesday Blitz November 29 Late 2022"]
[White "Przybylski, Wojciech"]
[Black "Sailer, Mike"]
[WhiteFideId "1117599"]
[BlackFideId "2012901"]
[WhiteElo "2221"]
[BlackElo "2109"]
[Result "1-0"]
[Round "03"]
[TimeControl "180+1"]
[Date "2022.11.30"]
[WhiteClock "0:00:05"]
[BlackClock "0:00:02"]

1. e4 {[%clk 0:03:00]}  d5 {[%clk 0:02:53]} 2. exd5 {[%clk 0:02:54]}  Qxd5 {[%clk 0:02:52]} 3. Qf3 {[%clk 0:02:54]}  Qxf3 {[%clk 0:02:51]} 4. Nxf3 {[%clk 0:02:53]}  Nc6 {[%clk 0:02:52]} 5. c3 {[%clk 0:02:53]}  Bf5 {[%clk 0:02:51]} 6. Bb5 {[%clk 0:02:52]}  f6 {[%clk 0:02:43]} 7. Bxc6+ {[%clk 0:02:51]}  bxc6 {[%clk 0:02:43]} 8. Nd4 {[%clk 0:02:49]}  Bd7 {[%clk 0:02:41]} 9. f4 {[%clk 0:02:48]}  e5 {[%clk 0:02:40]} 10. fxe5 {[%clk 0:02:48]}  fxe5 {[%clk 0:02:40]} 11. Ne2 {[%clk 0:02:17]}  Bc5 {[%clk 0:02:29]} 12. b4 {[%clk 0:02:14]}  Bb6 {[%clk 0:02:22]} 13. Na3 {[%clk 0:02:13]}  a6 {[%clk 0:02:10]} 14. Nc4 {[%clk 0:02:11]}  e4 {[%clk 0:02:02]} 15. Nxb6 {[%clk 0:02:04]}  cxb6 {[%clk 0:02:00]} 16. O-O {[%clk 0:01:56]}  Nf6 {[%clk 0:01:54]} 17. Bb2 {[%clk 0:01:54]}  O-O {[%clk 0:01:50]} 18. Ng3 {[%clk 0:01:43]}  Rae8 {[%clk 0:01:40]} 19. Rae1 {[%clk 0:01:39]}  c5 {[%clk 0:01:16]} 20. bxc5 {[%clk 0:01:32]}  bxc5 {[%clk 0:01:13]} 21. c4 {[%clk 0:01:31]}  Bc6 {[%clk 0:01:04]} 22. Nf5 {[%clk 0:01:17]}  Re6 {[%clk 0:00:52]} 23. Re3 {[%clk 0:01:06]}  Rd8 {[%clk 0:00:48]} 24. Rg3 {[%clk 0:00:49]}  Rd7 {[%clk 0:00:30]} 25. Nxg7 {[%clk 0:00:25]}  Rxg7 {[%clk 0:00:28]} 26. Bxf6 {[%clk 0:00:25]}  Rxg3 {[%clk 0:00:28]} 27. hxg3 {[%clk 0:00:25]}  e3 {[%clk 0:00:22]} 28. Bg5 {[%clk 0:00:16]}  exd2 {[%clk 0:00:21]} 29. Bxd2 {[%clk 0:00:15]}  Re4 {[%clk 0:00:19]} 30. Bh6 {[%clk 0:00:13]}  Re8 {[%clk 0:00:12]} 31. Rf5 {[%clk 0:00:13]}  Be4 {[%clk 0:00:08]} 32. Rxc5 {[%clk 0:00:13]}  Re6 {[%clk 0:00:07]} 33. Bf4 {[%clk 0:00:10]}  Kf7 {[%clk 0:00:07]} 34. Kf2 {[%clk 0:00:10]}  Bb1 {[%clk 0:00:03]} 35. Rc7+ {[%clk 0:00:08]}  Kf6 {[%clk 0:00:03]} 36. c5 {[%clk 0:00:08]}  Bxa2 {[%clk 0:00:02]} 37. Rxh7 {[%clk 0:00:05]} 1-0


[Site "https://www.chess.com"]

[Event "Titled Tuesday Blitz November 29 Late 2022"]
[White "Quesada Perez, Yuniesky"]
[Black "Barbot, Pierre"]
[WhiteFideId "3504409"]
[BlackFideId "663727"]
[WhiteElo "2599"]
[BlackElo "2439"]
[Result "1-0"]
[Round "03"]
[TimeControl "180+1"]
[Date "2022.11.30"]
[WhiteClock "0:01:28"]
[BlackClock "0:00:03"]

1. e4 {[%clk 0:03:00]}  c5 {[%clk 0:02:58]} 2. Nf3 {[%clk 0:03:00]}  Nc6 {[%clk 0:02:57]} 3. Bb5 {[%clk 0:02:59]}  g6 {[%clk 0:02:57]} 4. O-O {[%clk 0:02:58]}  Bg7 {[%clk 0:02:58]} 5. c3 {[%clk 0:02:59]}  Nf6 {[%clk 0:02:49]} 6. Re1 {[%clk 0:02:58]}  O-O {[%clk 0:02:48]} 7. d4 {[%clk 0:02:58]}  cxd4 {[%clk 0:02:42]} 8. cxd4 {[%clk 0:02:59]}  d5 {[%clk 0:02:42]} 9. e5 {[%clk 0:02:59]}  Ne4 {[%clk 0:02:43]} 10. Bxc6 {[%clk 0:02:58]}  bxc6 {[%clk 0:02:43]} 11. Be3 {[%clk 0:02:59]}  a5 {[%clk 0:02:33]} 12. Nfd2 {[%clk 0:02:55]}  Nxd2 {[%clk 0:02:30]} 13. Qxd2 {[%clk 0:02:54]}  a4 {[%clk 0:02:27]} 14. Nc3 {[%clk 0:02:54]}  Qb6 {[%clk 0:02:24]} 15. Rac1 {[%clk 0:02:45]}  Bf5 {[%clk 0:02:23]} 16. h3 {[%clk 0:02:40]}  Rfb8 {[%clk 0:02:22]} 17. Re2 {[%clk 0:02:40]}  a3 {[%clk 0:02:04]} 18. b3 {[%clk 0:02:39]}  Qb4 {[%clk 0:02:01]} 19. Qd1 {[%clk 0:02:33]}  Ra5 {[%clk 0:01:53]} 20. Na4 {[%clk 0:02:32]}  Qb5 {[%clk 0:01:25]} 21. Nc5 {[%clk 0:02:15]}  Ra7 {[%clk 0:01:20]} 22. Qd2 {[%clk 0:02:13]}  Qb4 {[%clk 0:01:07]} 23. Rc3 {[%clk 0:02:13]}  Bf8 {[%clk 0:00:58]} 24. Re1 {[%clk 0:02:12]}  Bc8 {[%clk 0:00:56]} 25. Rec1 {[%clk 0:02:10]}  Qa5 {[%clk 0:00:47]} 26. Bh6 {[%clk 0:02:08]}  Bxh6 {[%clk 0:00:39]} 27. Qxh6 {[%clk 0:02:07]}  Qb4 {[%clk 0:00:32]} 28. Qf4 {[%clk 0:02:04]}  Rb6 {[%clk 0:00:20]} 29. g4 {[%clk 0:01:57]}  Kg7 {[%clk 0:00:18]} 30. h4 {[%clk 0:01:53]}  Qa5 {[%clk 0:00:09]} 31. Rf3 {[%clk 0:01:47]}  e6 {[%clk 0:00:08]} 32. Qf6+ {[%clk 0:01:28]}  Kg8 {[%clk 0:00:07]} 33. Qd8+ {[%clk 0:01:28]}  Kg7 {[%clk 0:00:05]} 34. Qxc8 {[%clk 0:01:27]}  Qd2 {[%clk 0:00:04]} 35. Nxe6+ {[%clk 0:01:28]}  fxe6 {[%clk 0:00:03]} 36. Qf8# {[%clk 0:01:28]} 1-0


[Site "https://www.chess.com"]